fUSD/lending_fUSD_20260423
["ID","MTS","AMOUNT","RATE_DAILY","PERIOD"]
[421051464,1776951552953,-3054.34422646,0.00043207,60]
[421051465,1776951552962,-2350.0,0.00043207,30]
[421051466,1776951552972,-138152.03794707,0.00043207,30]
[421051467,1776951552981,-1499.999999,0.00043207,7]
[421051468,1776951552990,-1100.0,0.00043207,30]
[421051469,1776951552999,-808.61847359,0.00043207,30]
[421051470,1776951553009,-104996.15789061,0.00043207,31]
[421051471,1776951553018,-7000.0,0.00043207,30]
[421051472,1776951553028,-9908.03817023,0.00043207,30]
[421051473,1776951553038,-592.72068562,0.00043207,30]
[421051474,1776951553048,-1000000.0,0.00043207,30]
[421051475,1776951553057,-1000000.0,0.00043207,30]
[421051476,1776951553066,-1000000.0,0.00043207,30]
[421051477,1776951553076,-1000000.0,0.00043207,30]
[421051478,1776951553086,-1000000.0,0.00043207,30]
[421051479,1776951553095,-1000000.0,0.00043207,30]
[421051480,1776951553105,-1000000.0,0.00043207,30]
[421051481,1776951553116,-22360.16,0.00043207,30]
[421051482,1776951553125,-407346.97922569,0.00043207,30]
[421051483,1776951553855,-331.6,0.00043207,30]
[421051484,1776951553882,-2573.72432585,0.00043207,30]
[421051485,1776951553922,-310.546,0.00013699,2]
[421051486,1776951553937,-32.94865,0.00013699,2]
[421051487,1776951553948,-445.03444653,0.00043207,30]
[421051488,1776951591305,10877.93,0.00016467,120]
[421051489,1776951702241,2860.16,0.00016467,120]
[421051490,1776951942551,502.16,0.000165,120]
[421051491,1776952006182,10000.0,0.000165,120]
[421051497,1776952041463,5013.49,0.000165,120]
[421051511,1776952054867,5013.49,0.000165,120]
[421051543,1776952232464,-182.23696432,7.856e-05,2]
[421051544,1776952232477,-150.0,7.856e-05,2]
[421051545,1776952232488,-250.0,7.863e-05,2]
[421051546,1776952232497,-1032.67613115,8.129e-05,2]
[421051547,1776952232507,-4912.723694,8.178e-05,2]
[421051548,1776952232516,-280.0,8.219e-05,2]
[421051549,1776952232526,-1200.0,8.496e-05,2]
[421051550,1776952232535,-300.0,8.497e-05,2]
[421051551,1776952232545,-150.0,8.498e-05,2]
[421051552,1776952232555,-300.0,8.498e-05,2]
[421051553,1776952232564,-300.0,8.499e-05,2]
[421051554,1776952232574,-300.0,8.499e-05,2]
[421051555,1776952232584,-300.0,8.499e-05,2]
[421051556,1776952232593,-300.0,8.499e-05,2]
[421051557,1776952232603,-300.0,8.499e-05,2]
[421051558,1776952232613,-5000.0,8.499e-05,2]
[421051559,1776952232622,-2354.68351985,8.499e-05,2]
[421051560,1776952232632,-250.0,8.499e-05,2]
[421051561,1776952232642,-32099.21647111,8.582e-05,2]
[421051562,1776952232652,-200.70674629,8.641e-05,2]
[421051563,1776952232664,-49.29325371,8.641e-05,2]
[421051564,1776952232674,-1552.04943343,8.65e-05,2]
[421051565,1776952232683,-150.0,8.7e-05,2]
[421051566,1776952232693,-31082.02284371,8.764e-05,2]
[421051567,1776952232772,-508.61,8.764e-05,2]
[421051568,1776952232796,-19180.97568182,8.764e-05,2]
[421051569,1776952232807,-627.664217,8.764e-05,2]
[421051593,1776952239183,-316.59319674,8.763e-05,2]
[421051597,1776952239216,-107.24400812,8.763e-05,2]
[421051599,1776952239226,-500.0,8.763e-05,2]
[421051601,1776952239235,-500.0,8.763e-05,2]
[421051603,1776952239244,-221.42947402,8.763e-05,2]
[421051605,1776952239254,-500.0,8.763e-05,2]
[421051607,1776952239264,-500.0,8.763e-05,2]
[421051609,1776952239273,-268.62917165,8.763e-05,2]
[421051611,1776952239282,-500.0,8.763e-05,2]
[421051613,1776952239292,-500.0,8.763e-05,2]
[421051615,1776952239301,-354.85469361,8.763e-05,2]
[421051617,1776952239310,-500.0,8.763e-05,2]
[421051619,1776952239319,-500.0,8.763e-05,2]
[421051621,1776952239328,-500.0,8.763e-05,2]
[421051623,1776952239337,-345.5145126,8.763e-05,2]
[421051625,1776952239346,-298.32814,8.763e-05,2]
[421051635,1776952239425,-201.67186,8.763e-05,2]
[421051637,1776952239434,-61.69444388,8.763e-05,2]
[421051642,1776952239476,-438.30555612,8.763e-05,2]
[421051644,1776952239486,-500.0,8.763e-05,2]
[421051646,1776952239495,-500.0,8.763e-05,2]
[421051648,1776952239504,-27.04923527,8.763e-05,2]
[421051650,1776952239516,-472.95076473,8.763e-05,2]
[421051652,1776952239525,-500.0,8.763e-05,2]
[421051653,1776952239534,-500.0,8.763e-05,2]
[421051654,1776952239544,-500.0,8.763e-05,2]
[421051656,1776952239553,-322.40497182,8.763e-05,2]
[421051657,1776952239563,-500.0,8.763e-05,2]
[421051658,1776952239573,-500.0,8.763e-05,2]
[421051659,1776952239583,-329.77810353,8.763e-05,2]
[421051670,1776952239692,-170.22189647,8.763e-05,2]
[421051672,1776952239702,-500.0,8.763e-05,2]
[421051674,1776952239711,-500.0,8.763e-05,2]
[421051676,1776952239720,-500.0,8.763e-05,2]
[421051678,1776952239731,-500.0,8.763e-05,2]
[421051680,1776952239741,-500.0,8.763e-05,2]
[421051682,1776952239750,-500.0,8.763e-05,2]
[421051684,1776952239759,-500.0,8.763e-05,2]
[421051686,1776952239768,-500.0,8.763e-05,2]
[421051688,1776952239778,-500.0,8.763e-05,2]
[421051689,1776952239788,-500.0,8.763e-05,2]
[421051691,1776952239797,-500.0,8.763e-05,2]
[421051692,1776952239807,-500.0,8.763e-05,2]
[421051693,1776952239816,-500.0,8.763e-05,2]
[421051694,1776952239826,-500.0,8.763e-05,2]
[421051695,1776952239835,-500.0,8.763e-05,2]
[421051696,1776952239844,-500.0,8.763e-05,2]
[421051697,1776952239854,-7582.29283047,8.764e-05,2]
[421051698,1776952239866,-829.67010334,8.764e-05,2]
[421051706,1776952240710,-500.0,8.763e-05,2]
[421051707,1776952240720,-500.0,8.763e-05,2]
[421051708,1776952240729,-500.0,8.763e-05,2]
[421051709,1776952240738,-500.0,8.763e-05,2]
[421051710,1776952240747,-500.0,8.763e-05,2]
[421051711,1776952240756,-500.0,8.763e-05,2]
[421051712,1776952240765,-500.0,8.763e-05,2]
[421051713,1776952240775,-210.69676353,8.763e-05,2]
[421051714,1776952240784,-500.0,8.763e-05,2]
[421051715,1776952240793,-500.0,8.763e-05,2]
[421051716,1776952240803,-500.0,8.763e-05,2]
[421051717,1776952240812,-500.0,8.763e-05,2]
[421051718,1776952240822,-500.0,8.763e-05,2]
[421051719,1776952240831,-500.0,8.763e-05,2]
[421051720,1776952240841,-500.0,8.763e-05,2]
[421051721,1776952240851,-500.0,8.763e-05,2]
[421051722,1776952240861,-500.0,8.763e-05,2]
[421051723,1776952240870,-500.0,8.763e-05,2]
[421051724,1776952240879,-500.0,8.763e-05,2]
[421051725,1776952240888,-500.0,8.763e-05,2]
[421051726,1776952240898,-500.0,8.763e-05,2]
[421051727,1776952240909,-500.0,8.763e-05,2]
[421051728,1776952240918,-188165.81081727,8.764e-05,2]
[421051729,1776952240941,-491.42396994,8.764e-05,2]
[421051730,1776952241067,-3268.26365647,8.764e-05,2]
[421051736,1776952243298,-621.0,8.764e-05,2]
[421051737,1776952243563,-344.66,8.764e-05,2]
[421051739,1776952246623,-8600.16096363,8.764e-05,2]
[421051768,1776952258171,152.0,8.77e-05,30]
[421051769,1776952259584,8.02120933,8.773e-05,30]
[421051770,1776952259614,143.97879067,8.773e-05,30]
[421051771,1776952284457,152.0,8.891e-05,30]
[421051776,1776952439870,398.136,6.6e-05,2]
[421051777,1776952462551,161.0,6.6e-05,3]
[421051779,1776952732676,1350.0,6e-05,10]
[421051809,1776953431492,-394.56939458,7.888e-05,2]
[421051810,1776953431504,-727.66,8.164e-05,2]
[421051811,1776953431514,-280.0,8.219e-05,2]
[421051812,1776953431524,-202.79,8.318e-05,2]
[421051813,1776953431534,-363.83,8.332e-05,2]
[421051814,1776953431544,-200.0,8.4e-05,2]
[421051815,1776953431553,-150.0,8.599e-05,2]
[421051816,1776953431563,-150.0,8.599e-05,2]
[421051817,1776953431572,-300.0,8.599e-05,2]
[421051818,1776953431582,-1200.0,8.599e-05,2]
[421051819,1776953431591,-86791.66258471,8.6e-05,2]
[421051820,1776953431604,-3764.71410946,8.6e-05,2]
[421051821,1776953431615,-59861.59301331,8.6e-05,2]
[421051822,1776953431627,-1254.41808677,8.6e-05,2]
[421051823,1776953431687,-8649.52031818,8.6e-05,2]
[421051824,1776953431723,-45121.67127468,8.6e-05,2]
[421051856,1776953437618,-37873.0,8.6e-05,2]
[421051857,1776953437776,-553.91765,8.6e-05,2]
[421051858,1776953437882,-15752.51472694,8.6e-05,2]
[421051859,1776953437895,-829.67010334,8.6e-05,2]
[421051868,1776953439560,-1075.38158507,8.6e-05,2]
[421051869,1776953439614,-698881.76651175,8.6e-05,2]
[421051870,1776953439668,-850.70101574,8.6e-05,2]
[421051871,1776953440037,-463.17396815,8.6e-05,2]
[421051890,1776953442616,-5902.45247834,8.6e-05,2]
[421051899,1776953445928,-155115.63288707,8.6e-05,2]
[421051903,1776953983189,2535.0,6.6e-05,2]
[421051933,1776954633334,-254.0,8.015e-05,2]
[421051934,1776954633345,-568.19,8.015e-05,2]
[421051935,1776954633355,-280.0,8.219e-05,2]
[421051936,1776954633366,-204.790303,8.398e-05,2]
[421051937,1776954633379,-391.72641182,8.398e-05,2]
[421051938,1776954633392,-603.48328518,8.398e-05,2]
[421051939,1776954633402,-300.0,8.398e-05,2]
[421051940,1776954633412,-1123.692,8.399e-05,2]
[421051941,1776954633421,-1449.04849481,8.399e-05,2]
[421051942,1776954633433,-11850.24200519,8.399e-05,2]
[421051943,1776954633443,-150.0,8.4e-05,2]
[421051944,1776954633454,-838.74477063,8.4e-05,2]
[421051945,1776954633463,-838.74477063,8.45e-05,2]
[421051946,1776954633473,-150.0,8.497e-05,2]
[421051947,1776954633483,-549.38892162,8.498e-05,2]
[421051948,1776954633493,-500.0,8.498e-05,2]
[421051949,1776954633503,-500.0,8.498e-05,2]
[421051950,1776954633512,-1177.42091511,8.498e-05,2]
[421051951,1776954633522,-229.80933738,8.498e-05,2]
[421051952,1776954633531,-500.0,8.498e-05,2]
[421051953,1776954633542,-348.4334017,8.498e-05,2]
[421051954,1776954633553,-1177.42091511,8.498e-05,2]
[421051961,1776954634051,-500.0,8.498e-05,2]
[421051962,1776954634074,-500.0,8.498e-05,2]
[421051963,1776954634084,-500.0,8.498e-05,2]
[421051964,1776954634093,-1177.42091511,8.498e-05,2]
[421051965,1776954634103,-1177.42091511,8.498e-05,2]
[421051966,1776954634112,-428.22799538,8.498e-05,2]
[421051967,1776954634121,-500.0,8.498e-05,2]
[421051968,1776954634130,-500.0,8.498e-05,2]
[421051969,1776954634139,-1177.42091511,8.498e-05,2]
[421051970,1776954634148,-233.30755439,8.498e-05,2]
[421051971,1776954634158,-1177.42091511,8.498e-05,2]
[421051972,1776954634167,-1177.42091511,8.498e-05,2]
[421051973,1776954634177,-1177.42091511,8.498e-05,2]
[421051974,1776954634186,-1177.42091511,8.498e-05,2]
[421051975,1776954634195,-1177.42091511,8.498e-05,2]
[421051976,1776954634204,-1177.42091511,8.498e-05,2]
[421051977,1776954634213,-1177.42091511,8.498e-05,2]
[421051978,1776954634223,-1177.42091511,8.498e-05,2]
[421051979,1776954634232,-1177.42091511,8.498e-05,2]
[421051980,1776954634242,-397.30490351,8.498e-05,2]
[421051981,1776954634254,-780.1160116,8.498e-05,2]
[421051982,1776954634263,-1177.42091511,8.498e-05,2]
[421051983,1776954634272,-1177.42091511,8.498e-05,2]
[421051984,1776954634281,-1177.42091511,8.498e-05,2]
[421051985,1776954634290,-1177.42091511,8.498e-05,2]
[421051986,1776954634299,-1082.56388811,8.498e-05,2]
[421051987,1776954634315,-94.857027,8.498e-05,2]
[421051988,1776954634324,-1177.42091511,8.498e-05,2]
[421051989,1776954634333,-1177.42091511,8.498e-05,2]
[421051990,1776954634342,-1177.42091511,8.498e-05,2]
[421051991,1776954634351,-1177.42091511,8.498e-05,2]
[421051992,1776954634360,-1177.42091511,8.498e-05,2]
[421051993,1776954634370,-1053.57291371,8.498e-05,2]
[421051994,1776954634385,-123.8480014,8.498e-05,2]
[421051995,1776954634395,-1177.42091511,8.498e-05,2]
[421051996,1776954634404,-1177.42091511,8.498e-05,2]
[421051997,1776954634413,-1177.42091511,8.498e-05,2]
[421051998,1776954634422,-1177.42091511,8.498e-05,2]
[421051999,1776954634431,-1177.42091511,8.498e-05,2]
[421052000,1776954634441,-1177.42091511,8.498e-05,2]
[421052001,1776954634450,-1177.42091511,8.498e-05,2]
[421052002,1776954634460,-1177.42091511,8.498e-05,2]
[421052003,1776954634469,-1177.42091511,8.498e-05,2]
[421052004,1776954634479,-1177.42091511,8.498e-05,2]
[421052005,1776954634489,-1177.42091511,8.498e-05,2]
[421052006,1776954634497,-1177.42091511,8.498e-05,2]
[421052007,1776954634506,-1177.42091511,8.498e-05,2]
[421052008,1776954634518,-1177.42091511,8.498e-05,2]
[421052009,1776954634527,-1177.42091511,8.498e-05,2]
[421052010,1776954634536,-1177.42091511,8.498e-05,2]
[421052011,1776954634545,-1177.42091511,8.498e-05,2]
[421052012,1776954634554,-1177.42091511,8.498e-05,2]
[421052013,1776954634563,-1177.42091511,8.498e-05,2]
[421052014,1776954634572,-1177.42091511,8.498e-05,2]
[421052015,1776954634581,-1177.42091511,8.498e-05,2]
[421052016,1776954634590,-1177.42091511,8.498e-05,2]
[421052017,1776954634599,-1177.42091511,8.498e-05,2]
[421052018,1776954634609,-1177.42091511,8.498e-05,2]
[421052019,1776954634618,-1177.42091511,8.498e-05,2]
[421052020,1776954634627,-1177.42091511,8.498e-05,2]
[421052021,1776954634638,-1177.42091511,8.498e-05,2]
[421052022,1776954634648,-1177.42091511,8.498e-05,2]
[421052023,1776954634657,-1177.42091511,8.498e-05,2]
[421052024,1776954634667,-1177.42091511,8.498e-05,2]
[421052025,1776954634676,-1177.42091511,8.498e-05,2]
[421052026,1776954634685,-1177.42091511,8.498e-05,2]
[421052027,1776954634695,-1165.64670597,8.498e-05,2]
[421052028,1776954634704,-1165.64670597,8.498e-05,2]
[421052029,1776954634714,-1165.64670597,8.498e-05,2]
[421052030,1776954634723,-1165.64670597,8.498e-05,2]
[421052031,1776954634733,-1165.64670597,8.498e-05,2]
[421052032,1776954634742,-1165.64670597,8.498e-05,2]
[421052033,1776954634752,-1165.64670597,8.498e-05,2]
[421052034,1776954634761,-1165.64670597,8.498e-05,2]
[421052035,1776954634771,-1165.64670597,8.498e-05,2]
[421052036,1776954634780,-1165.64670597,8.498e-05,2]
[421052037,1776954634790,-1165.64670597,8.498e-05,2]
[421052038,1776954634801,-1165.64670597,8.498e-05,2]
[421052039,1776954634810,-1165.64670597,8.498e-05,2]
[421052040,1776954634820,-1165.64670597,8.498e-05,2]
[421052041,1776954634829,-1165.64670597,8.498e-05,2]
[421052042,1776954634839,-1165.64670597,8.498e-05,2]
[421052043,1776954634848,-1165.64670597,8.498e-05,2]
[421052044,1776954634858,-1165.64670597,8.498e-05,2]
[421052045,1776954634868,-1165.64670597,8.498e-05,2]
[421052046,1776954634878,-1165.64670597,8.498e-05,2]
[421052047,1776954634887,-1165.64670597,8.498e-05,2]
[421052048,1776954634896,-1165.64670597,8.498e-05,2]
[421052049,1776954634906,-1165.64670597,8.498e-05,2]
[421052050,1776954634916,-1165.64670597,8.498e-05,2]
[421052051,1776954634925,-1165.64670597,8.498e-05,2]
[421052052,1776954634935,-1165.64670597,8.498e-05,2]
[421052053,1776954634944,-1165.64670597,8.498e-05,2]
[421052054,1776954634954,-1165.64670597,8.498e-05,2]
[421052055,1776954634964,-1165.64670599,8.498e-05,2]
[421052056,1776954634974,-1165.64670599,8.498e-05,2]
[421052057,1776954634984,-150.99,8.498e-05,2]
[421052058,1776954634993,-1588.99,8.498e-05,2]
[421052059,1776954635003,-12214.53,8.498e-05,2]
[421052060,1776954635014,-2813.19,8.498e-05,2]
[421052061,1776954635025,-7622.71,8.499e-05,2]
[421052062,1776954635037,-999.99,8.499e-05,2]
[421052063,1776954635047,-4044.55,8.499e-05,2]
[421052064,1776954635057,-9999.99,8.499e-05,2]
[421052065,1776954635066,-500.0,8.499e-05,2]
[421052066,1776954635076,-838.74477063,8.499e-05,2]
[421052067,1776954635085,-155.00063182,8.499e-05,2]
[421052068,1776954635095,-500.0,8.499e-05,2]
[421052069,1776954635105,-500.0,8.499e-05,2]
[421052070,1776954635114,-500.0,8.499e-05,2]
[421052071,1776954635123,-500.0,8.499e-05,2]
[421052072,1776954635133,-500.0,8.499e-05,2]
[421052073,1776954635142,-500.0,8.499e-05,2]
[421052074,1776954635151,-500.0,8.499e-05,2]
[421052075,1776954635161,-571.39257062,8.499e-05,2]
[421052076,1776954635171,-500.0,8.499e-05,2]
[421052077,1776954635180,-538.04042016,8.499e-05,2]
[421052078,1776954635192,-500.0,8.499e-05,2]
[421052079,1776954635201,-500.0,8.499e-05,2]
[421052080,1776954635211,-500.0,8.499e-05,2]
[421052081,1776954635220,-500.0,8.499e-05,2]
[421052082,1776954635230,-548.06068823,8.499e-05,2]
[421052083,1776954635239,-500.0,8.499e-05,2]
[421052084,1776954635249,-500.0,8.499e-05,2]
[421052085,1776954635258,-500.0,8.499e-05,2]
[421052086,1776954635267,-500.0,8.499e-05,2]
[421052087,1776954635277,-500.0,8.499e-05,2]
[421052088,1776954635286,-500.0,8.499e-05,2]
[421052089,1776954635296,-450.0,8.499e-05,2]
[421052090,1776954635306,-296.6860434,8.499e-05,2]
[421052091,1776954635316,-345920.7371,8.5e-05,2]
[421052092,1776954635327,-226.66,8.557e-05,2]
[421052093,1776954635337,-176.29,8.557e-05,2]
[421052094,1776954635348,-152.0,8.595e-05,2]
[421052095,1776954635357,-152.0,8.616e-05,2]
[421052096,1776954635367,-3806.4254114,8.625e-05,2]
[421052097,1776954635377,-4398.3619296,8.625e-05,2]
[421052098,1776954635386,-24674.3798773,8.625e-05,2]
[421052099,1776954635396,-2046.6328008,8.625e-05,2]
[421052100,1776954635406,-415.6742813,8.625e-05,2]
[421052101,1776954635415,-152.0,8.625e-05,2]
[421052102,1776954635424,-152.0,8.625e-05,2]
[421052103,1776954635434,-8844.59576456,8.7e-05,2]
[421052104,1776954635444,-376.87,8.719e-05,2]
[421052105,1776954635453,-1093.8672339,8.763e-05,3]
[421052106,1776954635463,-500.0,8.773e-05,2]
[421052107,1776954635472,-300.0,8.817e-05,2]
[421052108,1776954635482,-300.0,8.817e-05,2]
[421052109,1776954635491,-300.0,8.817e-05,2]
[421052110,1776954635501,-300.0,8.817e-05,2]
[421052111,1776954635510,-5000.0,8.817e-05,2]
[421052112,1776954635521,-5000.0,8.817e-05,2]
[421052113,1776954635531,-5000.0,8.817e-05,2]
[421052114,1776954635540,-5000.0,8.817e-05,2]
[421052115,1776954635550,-5000.0,8.817e-05,2]
[421052116,1776954635560,-447.01481849,8.817e-05,2]
[421052117,1776954635570,-250.0,8.817e-05,2]
[421052118,1776954635580,-300.0,8.817e-05,2]
[421052119,1776954635589,-500.0,8.817e-05,2]
[421052120,1776954635599,-500.0,8.817e-05,2]
[421052121,1776954635609,-500.0,8.817e-05,2]
[421052122,1776954635618,-500.0,8.817e-05,2]
[421052123,1776954635628,-250.0,8.817e-05,2]
[421052124,1776954635637,-500.0,9.047e-05,2]
[421052125,1776954635646,-1680.0,9.238e-05,2]
[421052126,1776954635656,-350.0,9.238e-05,2]
[421052127,1776954635666,-500.0,9.321e-05,2]
[421052128,1776954635675,-255.0,9.347e-05,2]
[421052129,1776954635685,-415.6742813,9.569e-05,2]
[421052130,1776954635694,-2046.6328008,9.576e-05,2]
[421052131,1776954635703,-500.0,9.595e-05,2]
[421052132,1776954635713,-1313.00603265,9.628e-05,2]
[421052133,1776954635722,-4398.3619296,9.655e-05,2]
[421052134,1776954635731,-3806.4254114,9.657e-05,2]
[421052135,1776954635741,-24674.3798773,9.658e-05,2]
[421052136,1776954635750,-175.40153711,9.869e-05,2]
[421052137,1776954635760,-163.92226039,9.882e-05,2]
[421052138,1776954635771,-162.24421151,9.922e-05,2]
[421052139,1776954635781,-28897.01238713,9.935e-05,2]
[421052140,1776954635790,-161.0,0.0001,2]
[421052141,1776954635800,-161.0,0.0001,2]
[421052142,1776954635809,-161.0,0.0001,2]
[421052143,1776954635819,-161.0,0.0001,2]
[421052144,1776954635828,-323.17664602,0.0001,2]
[421052145,1776954635838,-393.4016875,0.0001,2]
[421052146,1776954635847,-885.02494276,0.0001,2]
[421052147,1776954635857,-787.80047097,0.0001,2]
[421052148,1776954635866,-867.97808872,0.0001,2]
[421052149,1776954635875,-155.24798247,0.0001,2]
[421052150,1776954635884,-166.81298009,0.0001,2]
[421052151,1776954635897,-164.02941661,0.0001,2]
[421052152,1776954635906,-165.91376,0.0001,2]
[421052153,1776954635915,-1386.78395259,0.0001,2]
[421052154,1776954635925,-300.53,0.00010137,2]
[421052155,1776954635934,-2351.0,0.00010161,2]
[421052156,1776954635944,-1672.67661477,0.00010276,2]
[421052157,1776954635953,-433.0,0.00010281,2]
[421052158,1776954635962,-285.24,0.00010468,2]
[421052159,1776954635972,-415.6742813,0.00010514,2]
[421052160,1776954635982,-2046.6328008,0.00010527,2]
[421052161,1776954635991,-500.0,0.00010673,2]
[421052162,1776954636001,-4398.3619296,0.00010685,2]
[421052163,1776954636010,-3806.4254114,0.0001069,2]
[421052164,1776954636019,-24674.3798773,0.00010691,2]
[421052165,1776954636029,-14240.40173331,0.000107,2]
[421052166,1776954636039,-4237.99942622,0.000109,2]
[421052167,1776954636049,-1200.0,0.00010959,2]
[421052168,1776954636058,-1200.0,0.00010959,2]
[421052169,1776954636069,-1200.0,0.00010959,2]
[421052170,1776954636078,-1200.0,0.00010959,2]
[421052171,1776954636087,-1200.0,0.00010959,2]
[421052172,1776954636096,-1200.0,0.00010959,2]
[421052173,1776954636106,-1200.0,0.00010959,2]
[421052174,1776954636115,-1200.0,0.00010959,2]
[421052175,1776954636125,-355.1,0.00010989,2]
[421052176,1776954636134,-161.0,0.00011,2]
[421052177,1776954636144,-161.0,0.00011,2]
[421052178,1776954636154,-161.0,0.00011,2]
[421052179,1776954636164,-161.0,0.00011,2]
[421052180,1776954636175,-160.0,0.00011,3]
[421052181,1776954636185,-160.0,0.00011,3]
[421052182,1776954636196,-322.81430991,0.00011025,2]
[421052183,1776954636205,-683.60342921,0.00011099,2]
[421052184,1776954636215,-2689.0,0.00011178,2]
[421052185,1776954636224,-1000.0,0.00011221,2]
[421052186,1776954636235,-478.0,0.00011281,2]
[421052187,1776954636244,-736.0,0.0001131,2]
[421052188,1776954636254,-415.6742813,0.00011458,2]
[421052189,1776954636264,-2046.6328008,0.00011477,2]
[421052190,1776954636274,-2848.43,0.000115,2]
[421052191,1776954636283,-2885.41,0.000115,2]
[421052192,1776954636292,-18817.75,0.00011631,2]
[421052193,1776954636302,-1089.63551638,0.00011645,2]
[421052194,1776954636332,-503.80614295,0.00011645,2]
[421052283,1776954639078,-287.2681298,0.00011458,2]
[421052285,1776954639088,-12387.19834067,0.00011645,2]
[421052287,1776954639097,-215.45109735,0.00011645,2]
[421052289,1776954639106,-200.0,0.00011714,2]
[421052291,1776954639115,-4398.3619296,0.00011714,2]
[421052293,1776954639125,-727.89347116,0.00011722,2]
[421052295,1776954639136,-3078.53194024,0.00011722,2]
[421052297,1776954639145,-24674.3798773,0.00011723,2]
[421052299,1776954639154,-270.1737804,0.00011768,2]
[421052300,1776954639163,-500.0,0.00011781,2]
[421052302,1776954639172,-244.0,0.00011781,2]
[421052304,1776954639181,-3000.0,0.00012,2]
[421052306,1776954639190,-160.0,0.00012,3]
[421052308,1776954639200,-170.07,0.00012,3]
[421052310,1776954639212,-200.0,0.00012,2]
[421052312,1776954639220,-683.60342917,0.00012151,2]
[421052314,1776954639229,-1252.0,0.0001244,2]
[421052316,1776954639239,-162.0,0.00012893,2]
[421052318,1776954639248,-250.0,0.00013,2]
[421052320,1776954639258,-280.64,0.00013054,2]
[421052322,1776954639267,-14068.08530256,0.00013054,2]
[421052324,1776954639279,-829.67010334,0.00013054,2]
[421052326,1776954639290,-2438.15312271,0.00013054,2]
[421052337,1776954639392,-9008.95147139,0.00013054,2]
[421052339,1776954639401,-4237.99942615,0.0001339,2]
[421052341,1776954639411,-505.0,0.000135,2]
[421052343,1776954639420,-150.0,0.00013567,2]
[421052345,1776954639430,-1266.0,0.00013567,2]
[421052347,1776954639439,-1219.0,0.00013567,2]
[421052349,1776954639448,-927.0,0.00013567,2]
[421052351,1776954639457,-1048.0,0.00013567,2]
[421052353,1776954639467,-6032.0,0.00013567,2]
[421052355,1776954639476,-387.0,0.00013689,2]
[421052357,1776954639486,-155.362,0.00013697,2]
[421052359,1776954639495,-988.03,0.00013698,2]
[421052361,1776954639504,-988.03,0.00013698,2]
[421052363,1776954639514,-988.03,0.00013698,2]
[421052365,1776954639523,-988.03,0.00013698,2]
[421052367,1776954639532,-988.03,0.00013698,2]
[421052369,1776954639542,-988.03,0.00013698,2]
[421052371,1776954639552,-988.03,0.00013698,2]
[421052373,1776954639561,-988.03,0.00013698,2]
[421052375,1776954639570,-988.03,0.00013698,2]
[421052377,1776954639580,-500.0,0.00013698,2]
[421052379,1776954639589,-500.0,0.00013698,2]
[421052381,1776954639600,-500.0,0.00013698,2]
[421052383,1776954639609,-500.0,0.00013698,2]
[421052385,1776954639619,-500.0,0.00013698,2]
[421052387,1776954639628,-500.0,0.00013698,2]
[421052389,1776954639638,-500.0,0.00013698,2]
[421052391,1776954639647,-500.0,0.00013698,2]
[421052393,1776954639656,-1159.32,0.00013698,2]
[421052395,1776954639666,-1159.32,0.00013698,2]
[421052396,1776954639675,-1159.32,0.00013698,2]
[421052398,1776954639685,-1159.32,0.00013698,2]
[421052401,1776954639695,-1367.28,0.00013698,2]
[421052403,1776954639704,-1367.28,0.00013698,2]
[421052405,1776954639714,-1367.28,0.00013698,2]
[421052407,1776954639724,-1367.28,0.00013698,2]
[421052409,1776954639733,-1367.28,0.00013698,2]
[421052412,1776954639743,-251.16255751,0.00013698,2]
[421052413,1776954639753,-500.0,0.00013698,2]
[421052416,1776954639762,-500.0,0.00013698,2]
[421052418,1776954639772,-500.0,0.00013698,2]
[421052420,1776954639782,-500.0,0.00013698,2]
[421052422,1776954639791,-500.0,0.00013698,2]
[421052423,1776954639800,-500.0,0.00013698,2]
[421052425,1776954639810,-500.0,0.00013698,2]
[421052427,1776954639819,-500.0,0.00013698,2]
[421052429,1776954639829,-2252.65,0.00013698,2]
[421052431,1776954639838,-343.63995781,0.00013698,2]
[421052433,1776954639848,-2252.65,0.00013698,2]
[421052435,1776954639857,-2252.65,0.00013698,2]
[421052437,1776954639868,-2252.65,0.00013698,2]
[421052439,1776954639877,-500.0,0.00013698,2]
[421052441,1776954639887,-500.0,0.00013698,2]